[Event "*** Titled Tuesday 3|2 Blitz (Early)"]
[Site "Chess.com"]
[Date "2016.12.06"]
[Round "2"]
[White "Tesla37"]
[Black "viktorskliarov"]
[Result "1-0"]
[WhiteElo "2602"]
[BlackElo "2433"]
[TimeControl "180+2"]
[EndTime "11:21:59 PST"]
[Termination "Tesla37 won by resignation"]

1. e4 {[%clk 0:03:01.9]} 1... c5 {[%clk 0:03:00.6]} 2. Nf3 {[%clk 0:03:02.8]}
2... Nc6 {[%clk 0:03:01.8]} 3. Nc3 {[%clk 0:03:03.4]} 3... Nf6 {[%clk
0:03:02.4]} 4. Bb5 {[%clk 0:03:03.1]} 4... Nd4 {[%clk 0:03:03.2]} 5. e5 {[%clk
0:03:03.3]} 5... Nxb5 {[%clk 0:03:04.2]} 6. Nxb5 {[%clk 0:03:04.3]} 6... Nd5
{[%clk 0:03:05.5]} 7. Ng5 {[%clk 0:03:05.8]} 7... f6 {[%clk 0:03:06.8]} 8. exf6
{[%clk 0:03:06.9]} 8... Nxf6 {[%clk 0:03:03.9]} 9. O-O {[%clk 0:03:07.6]} 9...
Qb6 {[%clk 0:03:04.9]} 10. Nc3 {[%clk 0:03:06.4]} 10... e6 {[%clk 0:03:02.4]}
11. a4 {[%clk 0:03:01.3]} 11... Be7 {[%clk 0:03:00.6]} 12. a5 {[%clk 0:03:02.2]}
12... Qc6 {[%clk 0:03:01.4]} 13. d4 {[%clk 0:02:57.5]} 13... O-O {[%clk
0:02:50.6]} 14. Be3 {[%clk 0:02:45.5]} 14... b5 {[%clk 0:02:39.3]} 15. dxc5
{[%clk 0:01:55.8]} 15... b4 {[%clk 0:02:37.4]} 16. Na4 {[%clk 0:01:54.6]} 16...
Bb7 {[%clk 0:02:35.7]} 17. Nf3 {[%clk 0:01:39.4]} 17... Ng4 {[%clk 0:02:35.2]}
18. h3 {[%clk 0:01:38]} 18... Nxe3 {[%clk 0:02:32.7]} 19. fxe3 {[%clk
0:01:38.7]} 19... Bxc5 {[%clk 0:02:33]} 20. Nxc5 {[%clk 0:01:33.5]} 20... Qxc5
{[%clk 0:02:34.1]} 21. Nd4 {[%clk 0:01:28.6]} 21... Rxf1+ {[%clk 0:02:07.8]} 22.
Qxf1 {[%clk 0:01:28.8]} 22... Rf8 {[%clk 0:02:09.3]} 23. Qe2 {[%clk 0:01:27.2]}
23... e5 {[%clk 0:02:05.2]} 24. Nb3 {[%clk 0:01:27.2]} 24... Qc6 {[%clk
0:01:54.5]} 25. a6 {[%clk 0:01:27.5]} 25... Ba8 {[%clk 0:01:52.3]} 26. Rd1
{[%clk 0:01:26]} 26... d5 {[%clk 0:01:48]} 27. Rd2 {[%clk 0:01:24.2]} 27... Rf6
{[%clk 0:01:46.4]} 28. Qg4 {[%clk 0:01:24.1]} 28... Qxa6 {[%clk 0:01:36.6]} 29.
Qxb4 {[%clk 0:01:21.2]} 29... Qf1+ {[%clk 0:01:32.6]} 30. Kh2 {[%clk 0:01:21.3]}
30... d4 {[%clk 0:01:29.8]} 31. Qb8+ {[%clk 0:01:19.1]} 31... Rf8 {[%clk
0:01:29.2]} 32. Qxe5 {[%clk 0:01:19.7]} 32... dxe3 {[%clk 0:01:27.9]} 33. Qxe3
{[%clk 0:01:20.1]} 33... h6 {[%clk 0:01:28.5]} 34. Nd4 {[%clk 0:01:20.3]} 34...
Kh8 {[%clk 0:00:59.9]} 35. Qg3 {[%clk 0:01:07.8]} 35... Qf6 {[%clk 0:00:57.3]}
36. c3 {[%clk 0:01:07.4]} 36... a5 {[%clk 0:00:55.2]} 37. Re2 {[%clk 0:01:08.2]}
37... a4 {[%clk 0:00:50.9]} 38. Qe5 {[%clk 0:00:52.6]} 38... Qg6 {[%clk
0:00:38.6]} 39. Ne6 {[%clk 0:00:52.3]} 39... Rc8 {[%clk 0:00:31.7]} 40. Nf4
{[%clk 0:00:50.3]} 40... Qf7 {[%clk 0:00:29.3]} 41. Nh5 {[%clk 0:00:41]} 41...
Kh7 {[%clk 0:00:29.3]} 42. Rf2 {[%clk 0:00:40.2]} 42... Qg6 {[%clk 0:00:28.4]}
43. Nf4 {[%clk 0:00:41]} 43... Qf7 {[%clk 0:00:28.2]} 44. Ne6 {[%clk 0:00:37.6]}
44... Qg6 {[%clk 0:00:26.1]} 45. h4 {[%clk 0:00:31.1]} 45... Re8 {[%clk
0:00:26.3]} 46. Re2 {[%clk 0:00:29.3]} 46... Qg4 {[%clk 0:00:22.5]} 47. Ng5+
{[%clk 0:00:26.5]} 47... hxg5 {[%clk 0:00:23.1]} 48. Qxe8 {[%clk 0:00:27.2]}
48... gxh4 {[%clk 0:00:19.3]} 49. Qe5 {[%clk 0:00:27.4]} 49... Bc6 {[%clk
0:00:17.3]} 50. Rf2 {[%clk 0:00:28]} 50... Qe4 {[%clk 0:00:16]} 51. Qxe4+ {[%clk
0:00:28.5]} 51... Bxe4 {[%clk 0:00:17.3]} 52. Rf4 {[%clk 0:00:30]} 52... Bc2
{[%clk 0:00:18.9]} 53. Rxh4+ {[%clk 0:00:30.8]} 1-0

[Event "*** Titled Tuesday 3|2 Blitz (Early)"]
[Site "Chess.com"]
[Date "2016.12.06"]
[Round "2"]
[White "HZMC92"]
[Black "Firebullet"]
[Result "0-1"]
[WhiteElo "2301"]
[BlackElo "2323"]
[TimeControl "180+2"]
[EndTime "11:22:00 PST"]
[Termination "Firebullet won on time"]

1. d4 {[%clk 0:03:02]} 1... Nf6 {[%clk 0:02:57.5]} 2. c4 {[%clk 0:03:02.7]} 2...
Nc6 {[%clk 0:02:58.3]} 3. d5 {[%clk 0:03:01.3]} 3... Ne5 {[%clk 0:02:58.7]} 4.
Qc2 {[%clk 0:02:59.1]} 4... d6 {[%clk 0:02:49.3]} 5. Nf3 {[%clk 0:02:58.3]} 5...
Nxf3+ {[%clk 0:02:47.4]} 6. exf3 {[%clk 0:02:59.1]} 6... g6 {[%clk 0:02:48.5]}
7. Bd3 {[%clk 0:02:55.1]} 7... Bg7 {[%clk 0:02:48.4]} 8. O-O {[%clk 0:02:55.7]}
8... O-O {[%clk 0:02:46.8]} 9. Nc3 {[%clk 0:02:55.4]} 9... c6 {[%clk 0:02:40.9]}
10. Re1 {[%clk 0:02:51.4]} 10... Bd7 {[%clk 0:02:32]} 11. Bg5 {[%clk 0:02:51]}
11... Rc8 {[%clk 0:02:31.3]} 12. Qd2 {[%clk 0:02:46.3]} 12... Re8 {[%clk
0:02:31.1]} 13. Rad1 {[%clk 0:02:43]} 13... cxd5 {[%clk 0:02:11.2]} 14. cxd5
{[%clk 0:02:43.7]} 14... a6 {[%clk 0:02:07.2]} 15. f4 {[%clk 0:02:38.5]} 15...
b5 {[%clk 0:01:58.9]} 16. a3 {[%clk 0:02:39.1]} 16... Qb6 {[%clk 0:01:56.1]} 17.
f5 {[%clk 0:02:37.3]} 17... gxf5 {[%clk 0:01:44.4]} 18. Qf4 {[%clk 0:02:36.2]}
18... e5 {[%clk 0:01:28]} 19. Qh4 {[%clk 0:02:14.2]} 19... Ne4 {[%clk
0:01:10.8]} 20. Nxe4 {[%clk 0:02:11.1]} 20... fxe4 {[%clk 0:01:12]} 21. Bxe4
{[%clk 0:02:08.5]} 21... f5 {[%clk 0:01:12.9]} 22. Bb1 {[%clk 0:01:54.8]} 22...
Rf8 {[%clk 0:01:12.7]} 23. g4 {[%clk 0:01:47.8]} 23... Rf7 {[%clk 0:01:11.3]}
24. Be3 {[%clk 0:01:42.6]} 24... Qd8 {[%clk 0:01:09.8]} 25. g5 {[%clk
0:01:43.5]} 25... h6 {[%clk 0:01:05.7]} 26. Qh5 {[%clk 0:01:34.6]} 26... f4
{[%clk 0:01:00.2]} 27. Bh7+ {[%clk 0:01:27.7]} 27... Kxh7 {[%clk 0:00:56.9]} 28.
g6+ {[%clk 0:01:08.1]} 28... Kh8 {[%clk 0:00:56.9]} 29. gxf7 {[%clk 0:01:07.8]}
29... fxe3 {[%clk 0:00:57]} 30. Rxe3 {[%clk 0:01:08.9]} 30... Qg5+ {[%clk
0:00:57.3]} 31. Qxg5 {[%clk 0:01:01.3]} 31... hxg5 {[%clk 0:00:59.2]} 32. Rdd3
{[%clk 0:01:02.7]} 32... Bf6 {[%clk 0:00:53.5]} 33. Rc3 {[%clk 0:01:01.6]} 33...
Rf8 {[%clk 0:00:51.3]} 34. Rc7 {[%clk 0:00:55.7]} 34... Rxf7 {[%clk 0:00:52.2]}
35. Ra7 {[%clk 0:00:51.4]} 35... e4 {[%clk 0:00:45.9]} 36. b3 {[%clk 0:00:38]}
36... Bd4 {[%clk 0:00:42.7]} 37. Ra8+ {[%clk 0:00:35.2]} 37... Kg7 {[%clk
0:00:42.8]} 38. Rxe4 {[%clk 0:00:36.6]} 38... Bxf2+ {[%clk 0:00:42.7]} 39. Kg2
{[%clk 0:00:38]} 39... Bh4 {[%clk 0:00:37.5]} 40. Rxa6 {[%clk 0:00:36.8]} 40...
Bf5 {[%clk 0:00:31.8]} 41. Re3 {[%clk 0:00:28.2]} 41... Bg4 {[%clk 0:00:26.3]}
42. Rxd6 {[%clk 0:00:18.3]} 42... Rf2+ {[%clk 0:00:26]} 43. Kg1 {[%clk
0:00:19.5]} 43... Ra2 {[%clk 0:00:26.4]} 44. Re7+ {[%clk 0:00:19.8]} 44... Kf8
{[%clk 0:00:27.1]} 45. Rc7 {[%clk 0:00:09.9]} 45... Bf2+ {[%clk 0:00:22.8]} 46.
Kg2 {[%clk 0:00:07.7]} 46... Bc5+ {[%clk 0:00:22.4]} 47. Kf1 {[%clk 0:00:06]}
47... Bxd6 {[%clk 0:00:20.9]} 0-1

[Event "*** Titled Tuesday 3|2 Blitz (Early)"]
[Site "Chess.com"]
[Date "2016.12.06"]
[Round "2"]
[White "Lector118"]
[Black "WanderingPuppet"]
[Result "1/2-1/2"]
[WhiteElo "2333"]
[BlackElo "2310"]
[TimeControl "180+2"]
[EndTime "11:22:25 PST"]
[Termination "Game drawn by agreement"]

1. d4 {[%clk 0:03:01.9]} 1... Nf6 {[%clk 0:02:58.3]} 2. c4 {[%clk 0:03:02.1]}
2... g6 {[%clk 0:02:59.8]} 3. Nc3 {[%clk 0:03:02.9]} 3... Bg7 {[%clk 0:03:01.4]}
4. e4 {[%clk 0:03:04.3]} 4... O-O {[%clk 0:03:02.6]} 5. Nf3 {[%clk 0:03:05.5]}
5... d6 {[%clk 0:03:03.6]} 6. Be2 {[%clk 0:03:07.2]} 6... c5 {[%clk 0:03:05.1]}
7. d5 {[%clk 0:03:08.3]} 7... e6 {[%clk 0:03:06]} 8. O-O {[%clk 0:03:01.2]} 8...
Re8 {[%clk 0:03:07.4]} 9. Nd2 {[%clk 0:02:56.1]} 9... Na6 {[%clk 0:03:08.5]} 10.
Re1 {[%clk 0:02:51.2]} 10... Nc7 {[%clk 0:03:09.6]} 11. a4 {[%clk 0:02:49.1]}
11... b6 {[%clk 0:03:09.1]} 12. Bf1 {[%clk 0:02:49.2]} 12... exd5 {[%clk
0:03:08.5]} 13. cxd5 {[%clk 0:02:44.4]} 13... Ng4 {[%clk 0:03:01.4]} 14. Nf3
{[%clk 0:02:15.7]} 14... a6 {[%clk 0:02:54]} 15. h3 {[%clk 0:02:15.2]} 15... Ne5
{[%clk 0:02:54.6]} 16. Nd2 {[%clk 0:02:15.6]} 16... Rb8 {[%clk 0:02:50.4]} 17.
f4 {[%clk 0:02:14.9]} 17... Nd7 {[%clk 0:02:51.8]} 18. Nc4 {[%clk 0:02:15.6]}
18... Nf8 {[%clk 0:02:37.2]} 19. Be3 {[%clk 0:02:11.4]} 19... b5 {[%clk
0:02:37.5]} 20. axb5 {[%clk 0:02:12]} 20... Nxb5 {[%clk 0:02:33.1]} 21. Nxb5
{[%clk 0:02:08.8]} 21... axb5 {[%clk 0:02:35]} 22. Na5 {[%clk 0:02:09.9]} 22...
Bd7 {[%clk 0:02:32.6]} 23. Qc2 {[%clk 0:02:10.3]} 23... h5 {[%clk 0:02:20.4]}
24. Bf2 {[%clk 0:02:05.4]} 24... Nh7 {[%clk 0:02:15.9]} 25. e5 {[%clk 0:01:53]}
25... dxe5 {[%clk 0:02:13.1]} 26. Qxc5 {[%clk 0:01:51.3]} 26... exf4 {[%clk
0:02:09.2]} 27. Nc6 {[%clk 0:01:52.5]} 27... Bxc6 {[%clk 0:02:09.4]} 28. dxc6
{[%clk 0:01:54.4]} 28... Rxe1 {[%clk 0:02:07.5]} 29. Rxe1 {[%clk 0:01:56.3]}
29... Rc8 {[%clk 0:02:06.7]} 30. b4 {[%clk 0:01:51.1]} 30... Bf8 {[%clk
0:02:05.8]} 31. Qxb5 {[%clk 0:01:50.2]} 31... f3 {[%clk 0:02:01.9]} 32. gxf3
{[%clk 0:01:46.8]} 32... Qg5+ {[%clk 0:01:56.8]} 33. Qxg5 {[%clk 0:01:47.1]}
33... Nxg5 {[%clk 0:01:58.7]} 34. Bg2 {[%clk 0:01:42.8]} 34... Bxb4 {[%clk
0:01:53.3]} 35. Rb1 {[%clk 0:01:43.1]} 35... Bd6 {[%clk 0:01:48.9]} 36. Rd1
{[%clk 0:01:36.2]} 36... Bf4 {[%clk 0:01:39.8]} 37. Rd4 {[%clk 0:01:28.5]} 37...
Ne6 {[%clk 0:01:40.4]} 38. Rc4 {[%clk 0:01:29.6]} 38... Kf8 {[%clk 0:01:29.9]}
39. Bf1 {[%clk 0:01:26.7]} 39... Ke7 {[%clk 0:01:27.6]} 40. h4 {[%clk
0:01:25.1]} 40... Bd6 {[%clk 0:01:05.7]} 41. Bh3 {[%clk 0:01:20.2]} 41... f5
{[%clk 0:01:05.2]} 42. Bf1 {[%clk 0:01:18.2]} 42... Be5 {[%clk 0:00:56.7]} 43.
Rc1 {[%clk 0:01:14.9]} 43... Kd6 {[%clk 0:00:55.3]} 44. Bb5 {[%clk 0:01:15.7]}
44... Nd4 {[%clk 0:00:47.9]} 45. Rd1 {[%clk 0:01:14.9]} 45... Kd5 {[%clk
0:00:49.2]} 46. Ba6 {[%clk 0:01:11.8]} 46... Rc7 {[%clk 0:00:47.9]} 47. Bb7
{[%clk 0:01:12.5]} 47... Kc4 {[%clk 0:00:46.8]} 48. Bxd4 {[%clk 0:01:10.4]}
48... Bxd4+ {[%clk 0:00:47.5]} 49. Kg2 {[%clk 0:01:12.2]} 49... Kc5 {[%clk
0:00:40.5]} 50. Rc1+ {[%clk 0:01:11.9]} 50... Kd6 {[%clk 0:00:40.4]} 51. Rd1
{[%clk 0:01:11.1]} 51... Kc5 {[%clk 0:00:40.4]} 52. Kg3 {[%clk 0:01:10.6]} 52...
Be5+ {[%clk 0:00:39.5]} 53. Kg2 {[%clk 0:01:07.7]} 53... Bf4 {[%clk 0:00:38.6]}
54. Re1 {[%clk 0:00:58.8]} 54... Kd6 {[%clk 0:00:39.4]} 55. Re8 {[%clk
0:00:57.9]} 55... Rg7 {[%clk 0:00:36.6]} 56. Kf2 {[%clk 0:00:54.1]} 56... Kc5
{[%clk 0:00:37.1]} 57. Re6 {[%clk 0:00:48.6]} 57... Kb6 {[%clk 0:00:37]} 58. Ke2
{[%clk 0:00:48.2]} 58... Kc7 {[%clk 0:00:37.5]} 59. Kf2 {[%clk 0:00:48.5]} 59...
Bd6 {[%clk 0:00:35.6]} 60. Re8 {[%clk 0:00:49.2]} 60... Bf4 {[%clk 0:00:34.2]}
61. Rc8+ {[%clk 0:00:50.1]} 61... Kb6 {[%clk 0:00:35.6]} 62. Re8 {[%clk
0:00:49.4]} 62... Kc7 {[%clk 0:00:36.4]} 63. Re2 {[%clk 0:00:49.9]} 63... Bd6
{[%clk 0:00:36.5]} 64. Re6 {[%clk 0:00:50.8]} 64... Bf4 {[%clk 0:00:36.9]} 65.
Re8 {[%clk 0:00:50.4]} 65... Bd6 {[%clk 0:00:37.7]} 66. Rc8+ {[%clk 0:00:48.8]}
66... Kb6 {[%clk 0:00:39.2]} 67. Re8 {[%clk 0:00:41.4]} 67... Kc7 {[%clk
0:00:39.9]} 68. Re1 {[%clk 0:00:40.8]} 68... Bf4 {[%clk 0:00:40.4]} 69. Re6
{[%clk 0:00:39.4]} 1/2-1/2

[Event "*** Titled Tuesday 3|2 Blitz (Early)"]
[Site "Chess.com"]
[Date "2016.12.06"]
[Round "2"]
[White "Vrolijk"]
[Black "Andrejkin"]
[Result "1-0"]
[WhiteElo "2181"]
[BlackElo "2183"]
[TimeControl "180+2"]
[EndTime "11:22:32 PST"]
[Termination "Vrolijk won by resignation"]

1. e4 {[%clk 0:03:02]} 1... e5 {[%clk 0:03:00.6]} 2. Nf3 {[%clk 0:03:02.8]} 2...
Nc6 {[%clk 0:03:01.4]} 3. Bb5 {[%clk 0:03:04.3]} 3... a6 {[%clk 0:03:02.2]} 4.
Ba4 {[%clk 0:03:04.9]} 4... Nf6 {[%clk 0:03:03.2]} 5. d3 {[%clk 0:03:06.4]} 5...
b5 {[%clk 0:03:03.4]} 6. Bb3 {[%clk 0:03:07]} 6... Be7 {[%clk 0:03:05.3]} 7. Nc3
{[%clk 0:03:05.2]} 7... d6 {[%clk 0:03:02.2]} 8. Nd5 {[%clk 0:03:02.2]} 8... Bd7
{[%clk 0:03:00]} 9. Nxe7 {[%clk 0:03:00.3]} 9... Qxe7 {[%clk 0:03:01.9]} 10. h3
{[%clk 0:03:00.4]} 10... h6 {[%clk 0:03:00.1]} 11. c3 {[%clk 0:03:01.1]} 11...
a5 {[%clk 0:02:59.9]} 12. O-O {[%clk 0:02:58.3]} 12... a4 {[%clk 0:02:52.4]} 13.
Bc2 {[%clk 0:02:57]} 13... O-O {[%clk 0:02:46.4]} 14. d4 {[%clk 0:02:57.1]}
14... Rfd8 {[%clk 0:02:42.6]} 15. Re1 {[%clk 0:02:56.8]} 15... Na5 {[%clk
0:02:42.3]} 16. Qe2 {[%clk 0:02:51.2]} 16... Nc4 {[%clk 0:02:39.3]} 17. Bd3
{[%clk 0:02:49.7]} 17... exd4 {[%clk 0:02:26.1]} 18. cxd4 {[%clk 0:02:47.8]}
18... d5 {[%clk 0:02:20.5]} 19. e5 {[%clk 0:02:36.5]} 19... Ne8 {[%clk 0:02:18]}
20. Nh2 {[%clk 0:02:16.5]} 20... c5 {[%clk 0:02:12.1]} 21. Bf4 {[%clk
0:01:53.4]} 21... cxd4 {[%clk 0:02:08.3]} 22. Nf3 {[%clk 0:01:54]} 22... Qb4
{[%clk 0:02:05.2]} 23. a3 {[%clk 0:01:42.7]} 23... Qc5 {[%clk 0:01:44.4]} 24.
Rad1 {[%clk 0:01:43]} 24... Nc7 {[%clk 0:01:44.7]} 25. Nxd4 {[%clk 0:01:42.2]}
25... Ne6 {[%clk 0:01:38.3]} 26. Nxe6 {[%clk 0:01:29.8]} 26... Bxe6 {[%clk
0:01:40.2]} 27. Rc1 {[%clk 0:01:21.6]} 27... Qd4 {[%clk 0:01:31.8]} 28. Bxc4
{[%clk 0:00:36.9]} 28... bxc4 {[%clk 0:01:22.6]} 29. Bg3 {[%clk 0:00:34.4]}
29... Rab8 {[%clk 0:01:17.9]} 30. Rc2 {[%clk 0:00:29.8]} 30... Rdc8 {[%clk
0:01:12.8]} 31. Kh2 {[%clk 0:00:27.7]} 31... c3 {[%clk 0:01:05.2]} 32. Rd1
{[%clk 0:00:20.1]} 32... cxb2 {[%clk 0:01:05.7]} 33. Rxc8+ {[%clk 0:00:20.1]}
33... Rxc8 {[%clk 0:01:05.4]} 34. Rxd4 {[%clk 0:00:21]} 34... b1=Q {[%clk
0:01:06.5]} 35. Rxa4 {[%clk 0:00:19.3]} 35... Rc1 {[%clk 0:01:06.5]} 36. Ra8+
{[%clk 0:00:16.7]} 36... Kh7 {[%clk 0:01:06.9]} 37. Bf4 {[%clk 0:00:18.2]} 37...
Rh1+ {[%clk 0:00:55.4]} 38. Kg3 {[%clk 0:00:19.3]} 38... Qg6+ {[%clk 0:00:56.4]}
39. Kf3 {[%clk 0:00:19.2]} 39... Qh5+ {[%clk 0:00:57.2]} 40. Ke3 {[%clk
0:00:20.2]} 40... d4+ {[%clk 0:00:54.6]} 41. Kd2 {[%clk 0:00:21.2]} 41... Qg6
{[%clk 0:00:41.7]} 42. g4 {[%clk 0:00:16.9]} 42... Rxh3 {[%clk 0:00:39]} 43. f3
{[%clk 0:00:17.2]} 43... d3 {[%clk 0:00:35.7]} 44. Qxd3 {[%clk 0:00:18.3]} 44...
Qxd3+ {[%clk 0:00:33.2]} 45. Kxd3 {[%clk 0:00:20.2]} 45... Rxf3+ {[%clk
0:00:35.1]} 46. Ke4 {[%clk 0:00:21.9]} 46... Bd5+ {[%clk 0:00:26.8]} 47. Kxd5
{[%clk 0:00:22.7]} 47... Rxf4 {[%clk 0:00:28.1]} 48. Ra7 {[%clk 0:00:23.7]}
48... Kg6 {[%clk 0:00:22.3]} 49. a4 {[%clk 0:00:25.1]} 49... Rxg4 {[%clk
0:00:23.1]} 50. a5 {[%clk 0:00:27]} 50... Rg1 {[%clk 0:00:23.7]} 51. Ra6+ {[%clk
0:00:27.6]} 51... Kg5 {[%clk 0:00:23.9]} 52. Ra7 {[%clk 0:00:29.1]} 52... h5
{[%clk 0:00:19]} 53. Rxf7 {[%clk 0:00:29.1]} 53... g6 {[%clk 0:00:20.3]} 54. e6
{[%clk 0:00:29.6]} 54... h4 {[%clk 0:00:20.5]} 55. e7 {[%clk 0:00:30.6]} 55...
Rd1+ {[%clk 0:00:21.2]} 56. Kc6 {[%clk 0:00:31.3]} 56... Re1 {[%clk 0:00:21.4]}
57. Kd7 {[%clk 0:00:32.6]} 57... h3 {[%clk 0:00:22.2]} 58. e8=Q {[%clk
0:00:32.2]} 58... Rxe8 {[%clk 0:00:18.8]} 59. Kxe8 {[%clk 0:00:34.1]} 59... h2
{[%clk 0:00:20.7]} 60. Rh7 {[%clk 0:00:34.9]} 1-0

[Event "*** Titled Tuesday 3|2 Blitz (Early)"]
[Site "Chess.com"]
[Date "2016.12.06"]
[Round "2"]
[White "Mornar1951"]
[Black "GMKrikor"]
[Result "1/2-1/2"]
[WhiteElo "2602"]
[BlackElo "2531"]
[TimeControl "180+2"]
[EndTime "11:22:33 PST"]
[Termination "Game drawn by agreement"]

1. d4 {[%clk 0:03:02]} 1... Nf6 {[%clk 0:02:59.8]} 2. c4 {[%clk 0:03:03]} 2...
e6 {[%clk 0:03:00.8]} 3. g3 {[%clk 0:03:04.1]} 3... d5 {[%clk 0:02:45]} 4. Bg2
{[%clk 0:03:04.3]} 4... dxc4 {[%clk 0:02:37.5]} 5. Qa4+ {[%clk 0:03:04.4]} 5...
Bd7 {[%clk 0:02:04]} 6. Qxc4 {[%clk 0:03:04.8]} 6... Bc6 {[%clk 0:02:05.3]} 7.
Nf3 {[%clk 0:03:06]} 7... Bd5 {[%clk 0:01:48.8]} 8. Qd3 {[%clk 0:03:06.9]} 8...
c5 {[%clk 0:01:28.8]} 9. Nc3 {[%clk 0:03:07.4]} 9... Bc6 {[%clk 0:01:30.4]} 10.
O-O {[%clk 0:03:07.4]} 10... cxd4 {[%clk 0:01:17.6]} 11. Qxd4 {[%clk 0:03:04]}
11... Qxd4 {[%clk 0:01:16.9]} 12. Nxd4 {[%clk 0:03:05.9]} 12... Bxg2 {[%clk
0:01:18.1]} 13. Kxg2 {[%clk 0:03:07.8]} 13... a6 {[%clk 0:01:13.2]} 14. Rd1
{[%clk 0:03:04.6]} 14... Nbd7 {[%clk 0:01:09.8]} 15. Nb3 {[%clk 0:02:54.3]}
15... Bb4 {[%clk 0:01:08.9]} 16. Bd2 {[%clk 0:02:52.4]} 16... O-O {[%clk
0:01:06.9]} 17. Rac1 {[%clk 0:02:52.5]} 17... Rac8 {[%clk 0:01:07.3]} 18. a3
{[%clk 0:02:53]} 18... Bxc3 {[%clk 0:01:08.5]} 19. Bxc3 {[%clk 0:02:54.9]} 19...
Nd5 {[%clk 0:00:56.6]} 20. e4 {[%clk 0:02:55.3]} 20... Nxc3 {[%clk 0:00:57.1]}
21. Rxd7 {[%clk 0:02:54.9]} 21... Nxe4 {[%clk 0:00:56]} 22. Rxc8 {[%clk
0:02:50.9]} 22... Rxc8 {[%clk 0:00:57.9]} 23. Rxb7 {[%clk 0:02:52]} 23... g5
{[%clk 0:00:53.8]} 24. Nd4 {[%clk 0:02:45.1]} 24... Rc4 {[%clk 0:00:38]} 25. Rd7
{[%clk 0:02:39.1]} 25... Kf8 {[%clk 0:00:31.4]} 26. b3 {[%clk 0:02:20.4]} 26...
Ke8 {[%clk 0:00:31.2]} 27. bxc4 {[%clk 0:02:13]} 27... Kxd7 {[%clk 0:00:32.2]}
28. Nb3 {[%clk 0:02:09.7]} 28... Kd6 {[%clk 0:00:29.9]} 29. Kf3 {[%clk
0:02:09.9]} 29... Nc5 {[%clk 0:00:28.4]} 30. Nd2 {[%clk 0:02:07.2]} 30... f5
{[%clk 0:00:27.9]} 31. Ke3 {[%clk 0:02:07.4]} 31... e5 {[%clk 0:00:26.5]} 32. h3
{[%clk 0:01:52.2]} 32... h5 {[%clk 0:00:20]} 33. f3 {[%clk 0:01:53.5]} 33... f4+
{[%clk 0:00:19.8]} 34. Kf2 {[%clk 0:01:30.7]} 34... Nd3+ {[%clk 0:00:13.9]} 35.
Ke2 {[%clk 0:01:25.1]} 35... fxg3 {[%clk 0:00:15.6]} 36. Ne4+ {[%clk 0:01:26.2]}
36... Kc6 {[%clk 0:00:17.2]} 37. Nxg3 {[%clk 0:01:25.9]} 37... Nf4+ {[%clk
0:00:19.1]} 38. Ke3 {[%clk 0:01:26]} 38... h4 {[%clk 0:00:20.6]} 39. Nf1 {[%clk
0:01:19.7]} 39... Nxh3 {[%clk 0:00:21.9]} 40. Ke4 {[%clk 0:01:21]} 40... Ng1
{[%clk 0:00:17.4]} 41. Nh2 {[%clk 0:01:19.4]} 41... Kc5 {[%clk 0:00:17.5]} 42.
Kxe5 {[%clk 0:01:20.8]} 42... Kxc4 {[%clk 0:00:19.1]} 43. Kf5 {[%clk 0:01:22.1]}
43... Kd4 {[%clk 0:00:20.6]} 44. Kxg5 {[%clk 0:01:22.8]} 44... Ke3 {[%clk
0:00:22.3]} 45. Kg4 {[%clk 0:01:18.4]} 45... h3 {[%clk 0:00:21.5]} 46. f4 {[%clk
0:01:18.9]} 46... Ke4 {[%clk 0:00:22.8]} 47. f5 {[%clk 0:01:18.9]} 47... Ke5
{[%clk 0:00:22.6]} 48. Kg5 {[%clk 0:01:20.1]} 48... Ne2 {[%clk 0:00:20.6]} 49.
f6 {[%clk 0:01:16.7]} 49... Ke6 {[%clk 0:00:21.7]} 50. Kg6 {[%clk 0:01:07.1]}
50... Nf4+ {[%clk 0:00:22.7]} 51. Kg5 {[%clk 0:01:08.5]} 51... Nd5 {[%clk
0:00:19.3]} 52. Ng4 {[%clk 0:01:08.5]} 52... Nxf6 {[%clk 0:00:15.8]} 53. Nh2
{[%clk 0:01:06.3]} 53... Ne4+ {[%clk 0:00:15]} 54. Kh4 {[%clk 0:01:06.9]} 54...
Kd5 {[%clk 0:00:16.6]} 55. Kxh3 {[%clk 0:01:07.6]} 55... Kc4 {[%clk 0:00:18.3]}
56. Nf3 {[%clk 0:01:08.7]} 56... Kb3 {[%clk 0:00:18.3]} 57. Nd4+ {[%clk
0:01:03.8]} 57... Kxa3 {[%clk 0:00:19.3]} 58. Nc6 {[%clk 0:01:03.5]} 58... Kb3
{[%clk 0:00:16.2]} 59. Kg4 {[%clk 0:00:59.9]} 59... Kc4 {[%clk 0:00:16.8]} 60.
Kf4 {[%clk 0:01:00]} 60... Nc3 {[%clk 0:00:11]} 61. Ke3 {[%clk 0:00:59.8]} 61...
Kc5 {[%clk 0:00:12.5]} 62. Na5 {[%clk 0:00:58]} 62... Kb5 {[%clk 0:00:14]} 63.
Nb7 {[%clk 0:00:58.8]} 63... Na4 {[%clk 0:00:12.8]} 64. Kd2 {[%clk 0:00:55.4]}
64... Kb6 {[%clk 0:00:13.5]} 65. Nd6 {[%clk 0:00:55.3]} 65... Kc6 {[%clk
0:00:15]} 66. Nc4 {[%clk 0:00:53.1]} 66... Kc5 {[%clk 0:00:15]} 67. Na5 {[%clk
0:00:54.1]} 67... Kb5 {[%clk 0:00:12.9]} 1/2-1/2